bitfinex-derivatives/quotes_ETHF0:USTF0_20250314
["timestamp","ask_amount","ask_price","bid_price","bid_amount"]
[1741948850176,1.05078,1903.5,1903.4,3.19071022]
[1741948850469,3.767,1903.7,1903.4,2.13988022]
[1741948850665,1.05078,1903.5,1903.4,1.75410022]
[1741948852170,1.05078,1903.5,1903.4,0.70328022]
[1741948852370,1.05078,1903.5,1903.4,1.75411022]
[1741948852873,1.05078,1903.5,1903.4,0.70328022]
[1741948853063,1.05078,1903.5,1903.4,0.00788022]
[1741948853467,2.43098,1903.5,1903.4,0.00788022]
[1741948856070,5.63878,1903.5,1903.4,0.00788022]
[1741948857170,1.05094,1903.2,1903.1,0.7182]
[1741948857574,0.7068,1903.4,1903.1,0.7182]
[1741948857874,1.05094,1903.3,1903.2,1.05091]
[1741948858574,2.44344,1903.3,1903.2,1.05091]
[1741948860377,1.05094,1903.3,1903.2,1.05091]
[1741948860773,2.354,1903.4,1903.1,3.93388022]
[1741948860973,5.8342,1903.9,1903.3,5.83492]
[1741948861174,1.442,1903.7,1903.4,0.6783]
[1741948861375,1.05076,1903.6,1903.5,1.71254]
[1741948861876,1.05076,1903.6,1903.5,1.71258]
[1741948862071,2.356,1903.8,1903.5,0.6618]
[1741948862279,1.05071,1903.7,1903.6,1.05069]
[1741948862570,2.2e-07,1904.1,1903.5,3.8696]
[1741948862777,1.05049022,1904.1,1904.0,1.0505]
[1741948863474,2.2e-07,1904.1,1904.0,1.0505]
[1741948863870,2.2e-07,1904.1,1904.0,4.2583]
[1741948867182,2.2e-07,1904.1,1904.0,12.7363]
[1741948867374,1.3891,1904.8,1904.0,12.09735033]
[1741948867567,1.3891,1904.8,1904.5,3.2078]
[1741948867772,0.6813,1905.0,1904.6,2.62543]
[1741948867975,1.05002,1904.9,1904.8,1.05]
[1741948868174,1.3891,1905.0,1904.9,1.05]
[1741948868574,2.43905,1905.0,1904.9,1.05]
[1741948868876,2.43905,1905.0,1904.9,4.2578]
[1741948869077,2.43905,1905.0,1904.9,5.5763]
[1741948869282,0.00788022,1905.1,1905.0,1.04995]
[1741948869478,1.05777022,1905.1,1905.0,2.36845]
[1741948869678,0.00788022,1905.1,1905.0,2.36845]
[1741948870075,1.05777022,1905.1,1905.0,2.36845]
[1741948870378,0.00788022,1905.1,1905.0,2.36845]
[1741948870574,0.6915,1905.6,1905.0,4.5357]
[1741948870779,0.01885,1905.7,1905.3,3.2078]
[1741948870980,0.01885,1905.7,1905.4,1.3185]
[1741948871188,0.01885,1905.7,1905.6,1.04962]
[1741948871380,0.07905138,1906.7,1905.7,2.6239]
[1741948871683,3.2078,1907.3,1906.6,3.2078]
[1741948871872,3.2078,1907.3,1905.8,11.1358]
[1741948871873,1.4472,1907.4,1906.9,5.83006]
[1741948872076,0.40999857,1907.5,1907.0,5.6168]
[1741948872274,0.00398701,1908.0,1907.2,1.04874]
[1741948872478,3.2078,1907.7,1907.0,0.00788022]
[1741948872681,1.04879,1907.1,1907.0,0.00788022]
[1741948872878,1.3124,1907.6,1907.0,0.00788022]
[1741948873075,1.04879,1907.1,1907.0,0.00788022]
[1741948873271,2.44,1907.3,1907.0,0.00788022]
[1741948873477,3.7524,1907.3,1907.0,0.00788022]
[1741948873775,1.04876,1907.2,1907.0,0.00788022]
[1741948873981,1.04879,1907.1,1907.0,0.00788022]
[1741948874781,8.32988,1907.1,1906.2,9.9027]
[1741948874986,3.8826,1907.0,1906.4,3.2078]
[1741948875186,1.04895,1906.9,1906.4,4.25694]
[1741948875388,40.8,1906.8,1906.5,1.04912]
[1741948875581,40.8,1906.8,1906.5,1.4504]
[1741948875781,1.04907,1906.6,1906.5,1.4504]
[1741948876087,1.04907,1906.6,1906.5,1.45828022]
[1741948876888,1.4296,1906.7,1906.5,0.00788022]
[1741948877083,40.80788022,1906.8,1906.6,4.25684]
[1741948877279,40.80788022,1906.8,1906.7,1.4504]
[1741948877479,41.85684022,1906.8,1906.7,1.4504]
[1741948877785,1.04907,1906.6,1906.5,0.00788022]
[1741948878387,2.49047,1906.6,1906.5,0.00788022]
[1741948879990,0.00788022,1906.8,1906.5,0.00788022]
[1741948880188,0.00788022,1906.8,1906.7,1.04901]
[1741948880386,1.05686022,1906.8,1906.7,1.403]
[1741948881384,1.05685022,1906.8,1906.7,1.04901]
[1741948882092,1.05685022,1906.8,1906.6,1.4271]
[1741948882294,1.05685022,1906.8,1906.7,1.04901]
[1741948882596,0.00788022,1906.8,1906.7,1.04901]
[1741948882996,1.42818022,1906.8,1906.7,4.25681]
[1741948883297,0.00788022,1906.8,1906.7,4.25681]
[1741948884991,0.00788022,1906.8,1906.7,10.23481]
[1741948885194,1.0486,1907.5,1907.4,1.0486]
[1741948885490,1.04859,1907.5,1907.4,1.04858]
[1741948885895,1.3982,1907.6,1907.2,1.3573]
[1741948886292,1.04868,1907.3,1907.2,1.3573]
[1741948886595,1.04868,1907.3,1907.2,2.40604]
[1741948886798,1.04868,1907.3,1907.2,1.3573]
[1741948887391,4.01978,1907.4,1907.0,5.978]
[1741948887601,4.01978,1907.4,1907.0,1.4277]
[1741948887896,1.04882,1907.1,1907.0,1.04883]
[1741948888085,1.04885,1907.0,1906.9,1.4277]
[1741948888290,2.44905,1907.0,1906.9,1.4277]
[1741948888690,1.4002,1907.0,1906.7,10.2348]
[1741948888894,1.04896,1906.8,1906.7,11.6625]
[1741948890695,1.04892,1906.9,1906.8,1.0489]
[1741948891595,4.91709,1907.0,1906.9,1.0489]
[1741948892395,1.0489,1906.9,1906.8,2.39584]
[1741948892596,2.3878,1906.9,1906.8,1.04894]
[1741948893096,1.04896,1906.8,1906.7,7.027]
[1741948893290,2.38876,1906.8,1906.7,7.027]
[1741948893495,2.38876,1906.8,1906.6,2.39595]
[1741948893496,1.04901,1906.7,1906.6,2.39595]
[1741948893793,2.38885,1906.7,1906.6,1.04907]
[1741948894090,1.04907,1906.6,1906.5,4.26480022]
[1741948894293,2.38887,1906.6,1906.5,0.00788022]
[1741948894496,2.38887,1906.6,1906.5,1.05700022]
[1741948895297,1.3398,1906.6,1906.5,1.05700022]
[1741948895499,2.38887,1906.6,1906.5,0.00788022]
[1741948895999,1.3398,1906.6,1905.9,3.2078]
[1741948896205,0.6598,1906.5,1905.7,9.1858]
[1741948896500,1.04951,1905.9,1905.8,2.4443]
[1741948896699,1.04941,1906.0,1905.9,1.0494]
[1741948896894,2.47,1906.1,1905.9,1.3948]
[1741948897194,1.0494,1906.0,1905.9,5.65203]
[1741948897599,1.0494,1906.0,1905.9,4.25723]
[1741948897787,2.3756,1906.0,1905.9,4.25723]
[1741948897992,2.47,1906.1,1906.0,1.0494]
[1741948898188,2.47,1906.1,1906.0,2.4442]
[1741948898391,3.51934,1906.1,1906.0,2.4442]
[1741948898796,3.51934,1906.1,1906.0,3.14210173]
[1741948899595,2.47,1906.1,1906.0,3.14210173]
[1741948899896,0.00788022,1906.2,1906.1,1.04934]
[1741948900095,0.00788022,1906.2,1906.1,4.25714]
[1741948900299,3.8901,1906.6,1906.5,1.04912]
[1741948900504,3.51407,1906.6,1906.5,1.04912]
[1741948900803,1.04907,1906.6,1906.5,1.04912]
[1741948900999,1.04907,1906.6,1906.5,2.86637878]
[1741948901395,1.04907,1906.6,1906.5,1.81725878]
[1741948901797,1.04907,1906.6,1906.5,2.86637878]
[1741948903103,1.04907,1906.6,1906.5,1.81725878]
[1741948903401,1.04907,1906.6,1906.5,2.86637878]
[1741948903595,1.04903,1906.7,1906.6,1.04902]
[1741948904197,4.6329,1906.8,1906.5,2.37227]
[1741948904198,1.04907,1906.6,1906.5,2.37227]
[1741948904504,3.2078,1906.8,1906.5,1.3232]
[1741948904704,1.04905,1906.7,1906.6,1.04903]
[1741948905699,1.04905,1906.7,1906.6,2.87063442]
[1741948907907,1.04905,1906.7,1906.6,1.74964708]
[1741948909909,1.04905,1906.7,1906.6,0.70061708]
[1741948910307,1.04905,1906.7,1906.6,1.74968708]
[1741948911014,1.4278,1906.8,1906.5,1.3232]
[1741948911210,1.04907,1906.6,1906.5,2.37226]
[1741948911403,1.04905,1906.7,1906.6,1.04901]
[1741948912108,2.453,1906.9,1906.6,0.70123999]
[1741948912309,1.04892,1906.9,1906.8,1.0489]
[1741948912810,1.04896,1906.8,1906.7,3.78651999]
[1741948913199,1.04896,1906.8,1906.7,2.73753999]
[1741948914004,1.04896,1906.8,1906.7,2.0363]
[1741948914410,1.04896,1906.8,1906.7,2.36131]
[1741948914807,1.3632,1907.0,1906.9,1.0489]
[1741948915114,1.04882,1907.1,1906.8,3.2078]
[1741948915408,1.3388,1907.3,1906.9,1.3423]
[1741948915614,1.04885,1907.0,1906.9,1.3423]
[1741948917115,3.2078,1907.3,1906.9,1.3423]
[1741948917307,6.9856,1907.5,1907.0,3.926]
[1741948917620,1.04865,1907.4,1907.3,1.04867]
[1741948918617,1.3537,1907.7,1907.2,5.82959]
[1741948918818,1.3537,1907.7,1907.1,7.9953]
[1741948918819,1.04859,1907.5,1907.4,4.25641]
[1741948919614,1.3319,1907.6,1907.3,2.42604]
[1741948919916,1.04863,1907.4,1907.3,2.42604]
[1741948920116,1.04863,1907.4,1907.3,1.04864]
[1741948920316,2.62144,1907.5,1907.1,7.70176]
[1741948920515,1.3319,1907.3,1907.2,1.04872]
[1741948921422,1.04863,1907.4,1907.3,1.04867]
[1741948921616,3.8559,1907.5,1907.1,11.80778]
[1741948921812,3.8559,1907.5,1907.1,9.1858]
[1741948922013,1.0487,1907.3,1907.2,1.04869]
[1741948923319,1.4169,1907.5,1907.1,3.2078]
[1741948923513,2.46553,1907.5,1907.4,1.04863]
[1741948924023,1.04865,1907.4,1907.3,1.04863]
[1741948924220,3.48352,1907.6,1907.5,1.04857]
[1741948924420,1.04852,1907.6,1907.5,1.04857]
[1741948924722,1.0485,1907.7,1907.6,1.04847]
[1741948924919,0.00398701,1908.0,1907.6,3.2078]
[1741948925417,1.04841,1907.8,1907.7,0.6882]
[1741948925620,1.04841,1907.8,1907.7,1.73666]
[1741948925919,1.04841,1907.8,1907.7,1.73662]
[1741948926219,3.99213701,1908.0,1907.5,0.6888]
[1741948926422,1.04852,1907.6,1907.5,0.6888]
[1741948926611,2.62104,1907.8,1907.3,1.04868]
[1741948926815,1.04863,1907.4,1907.3,1.04868]
[1741948927711,1.04868,1907.3,1907.2,4.2565]
[1741948927919,1.04868,1907.3,1907.2,1.0487]
[1741948927920,1.3892,1907.3,1907.2,1.0487]
[1741948928111,1.04871,1907.3,1907.0,3.2078]
[1741948928319,1.04871,1907.3,1907.2,1.04872]
[1741948928620,1.0489,1906.9,1906.8,0.00788022]
[1741948929110,5.82984,1907.1,1906.8,0.00788022]
[1741948929111,0.6867,1907.1,1906.8,0.00788022]
[1741948929312,2.43808,1907.0,1906.9,1.04889]
[1741948929523,1.3892,1907.0,1906.9,1.04889]
[1741948929724,1.73553,1907.1,1907.0,1.04885]
[1741948930015,1.0489,1906.9,1906.8,1.05682022]
[1741948930217,1.0489,1906.9,1906.8,0.00788022]
[1741948931008,2.4502,1906.9,1906.8,0.00788022]
[1741948932319,2.4502,1906.9,1906.8,1.05684022]
[1741948932519,1.4013,1906.9,1906.8,1.05684022]
[1741948932716,2.451,1907.0,1906.8,1.05678022]
[1741948932917,3.49988,1907.0,1906.9,1.0489]
[1741948933118,1.0489,1906.9,1906.8,1.05678022]
[1741948933316,1.0489,1906.9,1906.8,1.05679022]
[1741948933513,3.8049,1907.0,1906.8,0.00788022]
[1741948933713,1.0489,1906.9,1906.8,1.05680022]
[1741948934115,1.0489,1906.9,1906.8,0.00788022]
[1741948934315,2.4028,1906.9,1906.8,0.00788022]
[1741948935215,5.6106,1906.9,1906.8,0.00788022]
[1741948935915,8.0536,1906.9,1906.8,0.00788022]
[1741948936117,8.7072,1906.9,1906.8,0.00788022]
[1741948936325,7.6583,1906.9,1906.2,9.1858]
[1741948936525,1.04908,1906.6,1906.5,1.04908]
[1741948937025,10.28059,1906.9,1906.4,1.04912]
[1741948937223,1.04923,1906.3,1906.2,4.25706]
[1741948937517,2.62287,1906.5,1906.0,0.694]
[1741948937824,1.75876,1906.5,1906.4,1.04918]
[1741948938019,2.0267,1906.5,1906.4,1.04918]
[1741948938226,2.0267,1906.5,1906.2,1.9769]
[1741948938427,2.445,1906.6,1906.2,1.9769]
[1741948938627,1.3171,1906.7,1906.2,10.58598022]
[1741948938822,3.7631,1906.7,1906.5,1.04908]
[1741948939020,4.81211,1906.7,1906.6,1.4097]
[1741948939515,4.81211,1906.7,1906.3,1.04921]
[1741948939516,3.85242959,1906.7,1906.3,1.04921]
[1741948939823,1.04912,1906.5,1906.4,1.4097]
[1741948940519,1.3621,1906.5,1906.2,7.68994022]
[1741948940721,1.04918,1906.4,1906.3,1.4097]
[1741948941023,3.49618,1906.4,1906.3,1.4097]
[1741948941422,1.04923,1906.3,1906.2,0.00788022]
[1741948941629,2.41133,1906.3,1906.2,0.00788022]
[1741948941925,5.52013,1906.3,1906.2,0.00788022]
[1741948942526,8.72793,1906.3,1906.2,0.00788022]
[1741948942719,1.04945,1905.9,1905.8,7.02747]
[1741948942917,1.04945,1905.9,1905.8,1.04947]
[1741948943126,3.29183,1906.2,1905.7,3.9022]
[1741948943327,1.04948,1905.9,1905.8,1.04951]
[1741948943726,5.06956,1906.0,1905.4,9.1858]
[1741948943921,5.06956,1906.0,1905.3,0.6944]
[1741948943922,3.96361,1905.8,1905.3,0.6944]
[1741948944227,3.50061,1905.7,1905.6,1.04962]
[1741948944521,0.00788022,1905.9,1905.5,0.00788022]
[1741948944727,0.00788022,1905.9,1905.8,1.04951]
[1741948945233,0.00788022,1905.9,1905.8,2.44701]
[1741948945420,0.00788022,1905.9,1905.8,1.3975]
[1741948945619,1.05733022,1905.9,1905.8,1.3975]
[1741948945819,52.55803954,1905.9,1904.6,4.01346701]
[1741948946023,1.05009,1904.8,1904.7,1.3975]
[1741948946237,1.05006,1904.8,1904.7,1.3975]
[1741948947324,2.45666,1904.8,1904.7,1.3975]
[1741948948228,1.4066,1904.8,1904.6,0.00788022]
[1741948948433,1.05011,1904.7,1904.6,0.00788022]
[1741948948627,3.8966,1904.8,1904.7,1.05011]
[1741948948932,3.8966,1904.8,1904.7,1.4487]
[1741948948933,4.94666,1904.8,1904.7,1.4487]
[1741948949330,1.05011,1904.7,1904.6,0.00788022]
[1741948949529,2.41651,1904.7,1904.6,0.00788022]
[1741948949728,1.3664,1904.7,1904.6,0.00788022]
[1741948949925,2.49,1904.8,1904.6,0.00788022]
[1741948949926,3.54006,1904.8,1904.6,0.00788022]
[1741948950128,3.54006,1904.8,1904.6,1.45658022]
[1741948950129,1.05011,1904.7,1904.6,1.45658022]
[1741948950431,2.41651,1904.7,1904.6,1.45658022]
[1741948950733,2.41651,1904.7,1904.6,0.00788022]
[1741948952128,2.41651,1904.7,1904.6,1.31628022]
[1741948953235,2.41651,1904.7,1904.6,0.00788022]
[1741948954229,4.90051,1904.7,1904.6,0.00788022]
[1741948954830,2.41651,1904.7,1904.6,0.00788022]
[1741948955232,2.41651,1904.7,1904.6,1.43898022]
[1741948955837,5.6908,1904.8,1904.6,1.43898022]
[1741948956136,3.2078,1904.8,1904.7,1.05011]
[1741948956330,3.2078,1904.8,1904.6,2.48911022]
[1741948956526,1.05011,1904.7,1904.6,2.48911022]
[1741948956724,4.25789,1904.8,1904.7,1.05011]
[1741948957438,1.05011,1904.7,1904.6,1.05802022]
[1741948958131,1.05011,1904.7,1904.6,0.00788022]
[1741948958835,3.52911,1904.7,1904.6,0.00788022]
[1741948959328,6.73691,1904.7,1904.6,0.00788022]
[1741948959528,2.479,1904.7,1904.6,1.05805022]
[1741948959728,2.63297022,1904.9,1904.6,1.05805022]
[1741948959939,1.05011,1904.7,1904.6,1.05805022]
[1741948960139,1.05011,1904.7,1904.6,0.00788022]
[1741948961246,4.25791,1904.7,1904.6,0.00788022]
[1741948961740,1.05044,1904.1,1903.9,7.02851]
[1741948961931,1.05052,1904.0,1903.9,1.0505]
[1741948962136,3.2078,1904.2,1903.7,12.52767]
[1741948962441,2.42159,1904.1,1904.0,1.05048]
[1741948962838,1.3711,1904.1,1903.9,0.00788022]
[1741948963235,2.42158,1904.1,1904.0,1.0505]
[1741948963433,1.3711,1904.1,1904.0,1.0505]
[1741948963643,1.05043,1904.2,1903.9,3.21568022]
[1741948963940,5.25066,1904.7,1903.9,3.21568022]
[1741948963941,3.8946,1904.6,1904.5,1.05022]
[1741948964244,1.05026,1904.5,1904.4,1.05026]
[1741948964444,2.49226,1904.5,1904.4,1.05026]
[1741948964744,1.05031,1904.4,1904.3,1.05029]
[1741948964939,2.49224,1904.5,1904.4,1.05028]
[1741948965536,1.05032,1904.4,1904.3,1.0503]
[1741948967241,4.06757,1904.5,1903.9,2.63426022]
[1741948967446,1.05045,1904.2,1904.1,1.05043]
[1741948967839,1.05041,1904.2,1904.1,1.05039]
[1741948968039,2.44351,1904.2,1904.1,1.05039]
[1741948968448,2.489,1904.3,1904.0,1.4012]
[1741948968755,3.2078,1904.4,1904.0,1.4012]
[1741948969042,4.25808,1904.4,1904.3,1.05033]
[1741948969443,2.44333,1904.5,1904.4,1.05028]
[1741948969641,1.05023,1904.5,1904.4,1.05028]
[1741948970141,1.05032,1904.4,1904.3,1.05029]
[1741948970640,2.40337,1904.5,1904.4,1.05028]
[1741948971135,2.486,1904.6,1904.2,5.2486]
[1741948971341,2.486,1904.6,1904.5,1.05022]
[1741948971947,0.00788022,1904.9,1904.5,1.05022]
[1741948972148,0.00788022,1904.9,1904.8,1.05006]
[1741948972149,1.05790022,1904.9,1904.8,1.05006]
[1741948972349,0.00788022,1904.9,1904.8,1.05006]
[1741948973446,1.05788022,1904.9,1904.8,1.05006]
[1741948973644,0.00788022,1904.9,1904.8,1.05006]
[1741948973840,1.05788022,1904.9,1904.8,1.05006]
[1741948974342,0.00788022,1904.9,1904.8,1.05006]
[1741948974547,0.00788022,1904.9,1904.8,4.25786]
[1741948974853,2.2e-07,1904.9,1904.8,4.25786]
[1741948975050,5.6948,1906.0,1905.9,1.04945]
[1741948975250,5.6948,1906.0,1904.9,2.62501]
[1741948975251,3.208,1906.1,1906.0,1.0494]
[1741948975645,44.008,1906.1,1905.8,0.7114]
[1741948975847,1.04945,1905.9,1905.8,1.76086]
[1741948976146,1.0496,1905.7,1905.6,1.04961]
[1741948976349,1.0496,1905.7,1905.6,1.4071]
[1741948976953,1.04962,1905.6,1905.5,0.00788022]
[1741948977254,3.54062,1905.6,1905.5,0.00788022]
[1741948977754,4.91642,1905.6,1905.5,0.00788022]
[1741948978049,4.91642,1905.6,1905.5,1.05755022]
[1741948978254,4.91642,1905.6,1905.5,0.00788022]
[1741948978654,4.91642,1905.6,1905.5,1.37078022]
[1741948979456,4.91642,1905.6,1905.5,0.00788022]
[1741948979757,5.58862,1905.6,1905.5,0.00788022]
[1741948979943,5.58862,1905.6,1905.5,1.05755022]
[1741948980253,5.58862,1905.6,1905.5,0.00788022]
[1741948980551,5.58862,1905.6,1905.5,2.42045022]
[1741948980748,3.54062,1905.6,1905.5,2.42045022]
[1741948980948,2.37232,1905.8,1905.7,1.04956]
[1741948981145,1.04952,1905.8,1905.5,7.20276022]
[1741948981450,1.04952,1905.8,1905.7,1.04956]
[1741948981848,2.37992,1905.8,1905.7,1.3675]
[1741948982551,1.04962,1905.6,1905.5,0.00788022]
[1741948982755,1.04962,1905.6,1905.5,1.37538022]
[1741948983056,1.7727,1905.7,1905.5,1.37538022]
[1741948983252,3.10306,1905.7,1905.6,1.04962]
[1741948983645,42.8535,1905.7,1905.5,1.37538022]
[1741948983849,1.04962,1905.6,1905.5,2.42503022]
[1741948984046,2.38002,1905.6,1905.5,2.42503022]
[1741948984346,1.77271,1905.7,1905.5,1.37538022]
[1741948984550,1.04962,1905.6,1905.5,2.42500022]
[1741948984855,2.39202,1905.6,1905.5,1.37538022]
[1741948985752,2.39202,1905.6,1905.5,2.42505022]
[1741948985953,3.2061,1905.7,1905.6,1.04962]
[1741948986159,3.2078,1905.9,1905.5,3.99948022]
[1741948986361,1.0496,1905.7,1905.5,1.37538022]
[1741948986554,2.484,1905.8,1905.5,1.37538022]
[1741948986855,1.04962,1905.6,1905.5,0.00788022]
[1741948987444,5.59982,1905.6,1905.5,0.00788022]
[1741948987645,2.39202,1905.6,1905.5,0.00788022]
[1741948987952,5.59982,1905.6,1905.5,0.00788022]
[1741948989655,2.39202,1905.6,1905.5,2.43245022]
[1741948989958,2.39202,1905.6,1905.5,1.38278022]
[1741948991955,2.39202,1905.6,1905.5,2.43245022]
[1741948992554,1.3424,1905.6,1905.5,2.43245022]
[1741948992759,2.39202,1905.6,1905.5,2.43245022]
[1741948994555,2.39202,1905.6,1905.5,1.05755022]
[1741948994860,2.39202,1905.6,1905.5,0.00788022]
[1741948998767,2.39202,1905.6,1905.5,1.37368022]
[1741948999262,2.39202,1905.6,1905.5,0.00788022]
[1741948999459,1.04973,1905.4,1905.3,2.0577]
[1741948999651,3.51173,1905.4,1905.3,2.0577]
[1741948999850,3.51173,1905.4,1905.3,3.10748]
[1741949000063,12.33729001,1905.4,1904.4,3.2078]
[1741949000359,1.05028,1904.4,1904.3,1.3533]
[1741949000754,4.86614,1904.5,1904.3,1.3533]
[1741949000955,1.05028,1904.4,1904.3,2.40362]
[1741949001559,1.05028,1904.4,1904.3,1.3533]
[1741949001759,1.05028,1904.4,1904.3,2.40362]
[1741949001961,1.05028,1904.4,1904.3,1.3533]
[1741949002364,2.38318,1904.4,1904.3,1.3533]
[1741949002668,1.05033,1904.3,1904.2,0.00788022]
[1741949002863,2.44073,1904.3,1904.2,1.38338022]
[1741949003364,2.44073,1904.3,1904.2,0.00788022]
[1741949003758,2.44073,1904.3,1904.2,1.38338022]
[1741949004264,1.05033,1904.3,1904.2,3.12877022]
[1741949004663,1.05033,1904.3,1904.2,2.07838022]
[1741949005563,7.0812,1904.5,1904.2,2.07838022]
[1741949005769,1.05033,1904.3,1904.2,3.12874022]
[1741949006075,1.05029,1904.4,1904.3,1.0503]
[1741949007165,1.05021,1904.6,1904.5,1.05021]
[1741949007373,5.84045022,1905.1,1904.4,2.62564]
[1741949007570,3.95972226,1905.0,1904.5,3.97443]
[1741949007767,1.05011,1904.7,1904.6,0.7206]
[1741949007973,1.05011,1904.7,1904.6,1.77077]
[1741949008174,1.05011,1904.7,1904.6,2.42877]
[1741949008869,2.484,1905.0,1904.6,7.21182]
[1741949009070,2.484,1905.0,1904.7,1.3648]
[1741949009271,1.05004,1904.9,1904.8,1.05004]
[1741949009467,2.484,1905.0,1904.9,1.05]
[1741949009864,1.05777022,1905.1,1905.0,1.04995]
[1741949010064,0.00788022,1905.1,1905.0,1.04995]
[1741949010472,0.00788022,1905.1,1905.0,1.73045]
[1741949010864,0.00788022,1905.1,1905.0,4.93825]
[1741949011464,1.359,1905.5,1905.0,3.8883]
[1741949011666,3.52967,1905.5,1905.4,1.04973]
[1741949012179,1.04967,1905.5,1905.4,2.47073]
[1741949012973,1.04967,1905.5,1905.4,1.421]
[1741949013166,5.62687,1905.5,1905.4,1.421]
[1741949013568,2.41907,1905.5,1905.4,1.421]
[1741949014385,1.04967,1905.5,1905.4,2.47073]
[1741949014886,1.04967,1905.5,1905.4,1.421]
[1741949015082,2.46857,1905.5,1905.4,1.421]
[1741949016586,0.00788022,1905.6,1905.4,1.421]
[1741949016794,0.00788022,1905.6,1905.5,1.04967]
[1741949017180,0.00788022,1905.6,1905.5,2.42087]
[1741949017383,1.05750022,1905.6,1905.5,2.42087]
[1741949017686,0.00788022,1905.6,1905.5,2.42087]
[1741949017880,0.00788022,1905.6,1905.3,3.21568022]
[1741949018088,1.04973,1905.4,1905.3,0.00788022]
[1741949018486,43.17743,1905.4,1905.3,0.00788022]
[1741949018882,2.37743,1905.4,1905.3,1.05766022]
[1741949019593,2.37743,1905.4,1905.3,0.00788022]
[1741949022788,5.58523,1905.4,1905.3,0.00788022]
[1741949024595,5.67162197,1905.4,1905.3,0.00788022]
[1741949025190,1.04995,1905.0,1904.9,0.7122]
[1741949025393,6.73168,1905.2,1904.8,0.6821]
[1741949025697,1.04996,1905.0,1904.9,1.04995]
[1741949026296,9.68801,1905.2,1904.9,1.04999]
[1741949026593,1.05,1905.0,1904.9,1.04999]
[1741949026793,6.73166,1905.2,1905.1,1.04989]
[1741949026987,5.6818,1905.2,1905.1,1.04989]
[1741949027591,6.73164,1905.2,1905.1,1.04989]
[1741949029094,1.04989,1905.1,1905.0,0.6564]
[1741949029293,1.05,1904.9,1904.8,0.68998022]
[1741949030302,1.05,1904.9,1904.8,1.74004022]
[1741949031692,4.25767,1905.2,1904.8,6.52290022]
[1741949031895,1.4419,1905.3,1904.8,0.68998022]
[1741949032098,1.4419,1905.3,1904.9,1.04997]
[1741949032099,1.04999,1905.0,1904.9,1.04997]
[1741949032596,1.04999,1905.0,1904.9,1.05]
[1741949033398,1.4419,1905.1,1905.0,1.04995]
[1741949033595,4.19726,1905.4,1905.3,1.04978]
[1741949033889,1.04982,1905.3,1905.2,1.04981]
[1741949034294,4.4791,1905.4,1905.1,0.7249]
[1741949034498,1.04984,1905.2,1905.1,1.77475]
[1741949034695,7.10348,1905.4,1905.0,1.04989]
[1741949034901,1.04988,1905.2,1905.1,1.04986]
[1741949035097,1.0498,1905.3,1905.2,1.04979]
[1741949035302,1.04989,1905.2,1905.1,1.04988]
[1741949037007,1.04989,1905.2,1904.9,8.60291]
[1741949037008,1.3316,1905.3,1904.9,8.60291]
[1741949037205,2.38144,1905.3,1905.2,1.04984]
[1741949037401,1.3316,1905.3,1905.2,1.04984]
[1741949037713,4.19724,1905.4,1905.3,1.04978]
[1741949037905,5.63084,1905.4,1905.3,1.04978]
[1741949038808,5.63084,1905.4,1905.2,1.9992]
[1741949038809,1.04978,1905.3,1905.2,3.049]
[1741949039313,1.4283,1905.3,1905.2,3.049]
[1741949039506,3.52076,1905.4,1905.3,1.04978]
[1741949040411,4.94906,1905.4,1905.3,1.04978]
[1741949040710,1.04973,1905.4,1905.3,1.04978]
[1741949040914,2.47803,1905.4,1905.3,1.04978]
[1741949043209,1.4283,1905.4,1905.2,5.207]
[1741949043415,1.04978,1905.3,1905.2,3.049]
[1741949044004,1.04978,1905.3,1905.2,1.9992]
[1741949044307,1.72268,1905.3,1905.2,1.9992]
[1741949044512,1.04989,1905.1,1905.0,4.25771]
[1741949044705,1.04989,1905.1,1905.0,5.68021]
[1741949044905,1.04989,1905.1,1905.0,2.47241]
[1741949045512,1.04989,1905.1,1905.0,1.4225]
[1741949045709,1.04989,1905.1,1905.0,2.47245]
[1741949049505,2.39519,1905.1,1905.0,2.47245]
[1741949049916,2.39519,1905.1,1905.0,1.4225]
[1741949050110,1.05,1904.9,1904.8,0.00788022]
[1741949050417,3.496,1904.9,1904.8,1.43458022]
[1741949050806,5.5182,1904.9,1904.8,1.43458022]
[1741949051013,2.62515,1904.8,1904.4,1.05023]
[1741949051317,1.05022,1904.5,1904.4,2.47693]
[1741949051515,3.49622,1904.6,1904.5,1.05022]
[1741949052017,1.05022,1904.5,1904.4,2.47692]
[1741949052219,2.37292,1904.5,1904.4,2.48217348]
[1741949052813,2.37292,1904.5,1904.4,1.43195348]
[1741949053914,3.06542,1904.5,1904.4,1.43195348]
[1741949054216,3.06542,1904.5,1904.4,0.00525348]
[1741949054920,3.06542,1904.5,1904.4,2.42173348]
[1741949055420,3.06542,1904.5,1904.4,1.37145348]
[1741949055711,3.06542,1904.5,1904.4,2.42173348]
[1741949055917,3.49619,1904.6,1904.5,1.05022]
[1741949056109,4.91699,1904.6,1904.5,2.41642]
[1741949058619,2.446,1904.6,1904.5,2.41642]
[1741949058915,1.44728022,1904.7,1904.6,1.05017]
[1741949060618,2.49743022,1904.7,1904.6,1.05017]
[1741949061019,0.00788022,1904.7,1904.6,1.05017]
[1741949061218,0.00788022,1904.7,1904.6,4.25797]
[1741949061516,0.00788022,1904.7,1904.6,4.98417]
[1741949063523,1.05799022,1904.7,1904.6,4.98417]
[1741949064314,0.00788022,1904.7,1904.6,4.98417]
[1741949066924,0.00788022,1904.7,1904.6,6.39217]
[1741949067727,0.6893,1905.2,1905.1,1.04989]
[1741949068119,3.8652,1905.3,1905.2,1.04984]